fUST/lending_fUST_20241211
["ID","MTS","AMOUNT","RATE_DAILY","PERIOD"]
[345003548,1733921433572,-576.11485275,0.00029416,2]
[345003551,1733921433584,-3640.20416966,0.00029416,2]
[345003553,1733921433594,-150.0,0.00029432,2]
[345003555,1733921433604,-4957.77583034,0.00029471,2]
[345004022,1733921438818,-166.64369727,0.00027505,2]
[345004024,1733921438828,-576.30750865,0.00029471,2]
[345004027,1733921438839,-336.5774975,0.00029471,2]
[345004029,1733921438851,-509.765,0.00029471,2]
[345004183,1733921440723,-166.64369726,0.00028454,2]
[345004184,1733921440733,-2452.20849954,0.00029471,2]
[345004186,1733921440743,-293.31978123,0.00029497,2]
[345004187,1733921440752,-549.71863821,0.00029497,2]
[345004188,1733921440761,-500.0,0.00029497,2]
[345004189,1733921440771,-560.13686422,0.00029497,2]
[345004190,1733921440780,-500.0,0.00029497,2]
[345004192,1733921440790,-500.0,0.00029497,2]
[345004193,1733921440801,-500.0,0.00029497,2]
[345004194,1733921440812,-500.0,0.00029497,2]
[345004195,1733921440822,-500.0,0.00029497,2]
[345004196,1733921440832,-268.53304209,0.00029497,2]
[345004290,1733921443903,-231.46695791,0.00029497,2]
[345004291,1733921443913,-293.23459698,0.00029497,2]
[345004317,1733922474731,234.285866,0.00013973,2]
[345004318,1733922474971,234.285866,0.00020447,2]
[345004365,1733922631855,-2630.75476816,0.0002517,2]
[345004366,1733922631864,-172.222617,0.0002527,2]
[345004367,1733922631873,-609.260087,0.00025544,2]
[345004368,1733922631883,-174.442648,0.0002609,2]
[345004369,1733922631893,-234.285866,0.00026921,2]
[345004370,1733922631902,-401.54454164,0.00027397,60]
[345004371,1733922631912,-157.17066846,0.00027565,2]
[345004372,1733922631921,-500.0,0.00027604,7]
[345004373,1733922631931,-161.022,0.00027857,17]
[345004374,1733922631942,-300.0,0.00027857,2]
[345004375,1733922631951,-300.0,0.00027857,2]
[345004376,1733922631961,-1366.23698286,0.00027858,2]
[345004377,1733922631972,-950.473592,0.00027858,2]
[345004378,1733922631984,-445.067836,0.00027858,2]
[345004462,1733922643084,-304.630043,0.00027832,2]
[345004463,1733922643094,-4110.41840211,0.00027858,2]
[345004488,1733922648312,155.0,0.00022,2]
[345004489,1733922718778,500.0,0.00026,60]
[345004491,1733922788496,1524.07,0.00023,2]
[345004496,1733923086102,999.0,0.00023,30]
[345004498,1733923447239,238.066468,0.00013973,2]
[345004499,1733923447445,238.066468,0.00020447,2]
[345004533,1733923721629,317.08068179,0.00025,120]
[345004607,1733923832153,-300.0,0.00024024,2]
[345004608,1733923832168,-28.43803207,0.00024025,2]
[345004609,1733923832180,-3926.29296144,0.00024025,2]
[345004616,1733923838066,-357.1494362,0.00024024,2]
[345004617,1733923838076,-500.0,0.00024024,2]
[345004618,1733923838087,-421.12297472,0.00024024,2]
[345004619,1733923838097,-500.0,0.00024024,2]
[345004620,1733923838108,-624.39288923,0.00024024,2]
[345004621,1733923838124,-500.0,0.00024024,2]
[345004622,1733923838135,-500.0,0.00024024,2]
[345004623,1733923838145,-500.0,0.00024024,2]
[345004624,1733923838166,-500.0,0.00024024,2]
[345004625,1733923838187,-500.0,0.00024024,2]
[345004626,1733923838198,-500.0,0.00024024,2]
[345004627,1733923838209,-500.0,0.00024024,2]
[345004628,1733923838220,-500.0,0.00024024,2]
[345004630,1733923838230,-500.0,0.00024024,2]
[345004632,1733923838240,-500.0,0.00024024,2]
[345004634,1733923838250,-500.0,0.00024024,2]
[345004636,1733923838259,-171.3884756,0.00024024,2]
[345004638,1733923838270,-500.0,0.00024024,2]
[345004640,1733923838281,-457.4978348,0.00024024,2]
[345004642,1733923838291,-500.0,0.00024024,2]
[345004644,1733923838300,-464.62335033,0.00024024,2]
[345004646,1733923838310,-500.0,0.00024024,2]
[345004648,1733923838320,-500.0,0.00024024,2]
[345004650,1733923838331,-500.0,0.00024024,2]
[345004652,1733923838340,-500.0,0.00024024,2]
[345004654,1733923838350,-500.0,0.00024024,2]
[345004656,1733923838360,-500.0,0.00024024,2]
[345004657,1733923838370,-500.0,0.00024024,2]
[345004658,1733923838380,-500.0,0.00024024,2]
[345004659,1733923838390,-500.0,0.00024024,2]
[345004660,1733923838401,-500.0,0.00024024,2]
[345004661,1733923838411,-500.0,0.00024024,2]
[345004662,1733923838421,-500.0,0.00024024,2]
[345004663,1733923838431,-500.0,0.00024024,2]
[345004664,1733923838439,-500.0,0.00024024,2]
[345004665,1733923838449,-500.0,0.00024024,2]
[345004666,1733923838459,-500.0,0.00024024,2]
[345004667,1733923838468,-500.0,0.00024024,2]
[345004668,1733923838478,-617.40107945,0.00024024,2]
[345004669,1733923838487,-500.0,0.00024024,2]
[345004670,1733923838497,-500.0,0.00024024,2]
[345004671,1733923838507,-500.0,0.00024024,2]
[345004672,1733923838516,-500.0,0.00024024,2]
[345004673,1733923838525,-500.0,0.00024024,2]
[345004674,1733923838535,-500.0,0.00024024,2]
[345004675,1733923838545,-500.0,0.00024024,2]
[345004676,1733923838554,-500.0,0.00024024,2]
[345004677,1733923838565,-500.0,0.00024024,2]
[345004678,1733923838574,-500.0,0.00024024,2]
[345004679,1733923838584,-500.0,0.00024024,2]
[345004680,1733923838593,-500.0,0.00024024,2]
[345004681,1733923838603,-500.0,0.00024024,2]
[345004682,1733923838612,-500.0,0.00024024,2]
[345004683,1733923838622,-500.0,0.00024024,2]
[345004684,1733923838632,-500.0,0.00024024,2]
[345004685,1733923838642,-500.0,0.00024024,2]
[345004686,1733923838652,-500.0,0.00024024,2]
[345004687,1733923838662,-500.0,0.00024024,2]
[345004688,1733923838673,-500.0,0.00024024,2]
[345004689,1733923838683,-500.0,0.00024024,2]
[345004690,1733923838712,-297.53830212,0.00024024,2]
[345004691,1733923838722,-500.0,0.00024024,2]
[345004692,1733923838733,-500.0,0.00024024,2]
[345004693,1733923838743,-500.0,0.00024024,2]
[345004694,1733923838752,-500.0,0.00024024,2]
[345004695,1733923838761,-500.0,0.00024024,2]
[345004696,1733923838771,-500.0,0.00024024,2]
[345004697,1733923838781,-500.0,0.00024024,2]
[345004698,1733923838794,-500.0,0.00024024,2]
[345004699,1733923838804,-500.0,0.00024024,2]
[345004700,1733923838813,-446.30387565,0.00024024,2]
[345004701,1733923838823,-401968.82972797,0.00024025,2]
[345004702,1733923838832,-1897.41028251,0.00024025,2]
[345004703,1733923838841,-197.29715104,0.00024025,2]
[345004704,1733923838850,-24900.0,0.00024027,2]
[345004705,1733923838859,-309.5775789,0.00024073,2]
[345004706,1733923838869,-500.0,0.00024073,2]
[345004707,1733923838878,-500.0,0.000241,2]
[345004708,1733923838887,-419.48641852,0.000241,2]
[345004709,1733923838896,-500.0,0.000241,2]
[345004710,1733923838906,-329.75118036,0.000241,2]
[345004711,1733923838916,-518.15008782,0.000241,2]
[345004712,1733923838926,-500.0,0.000241,2]
[345004713,1733923838936,-502.67658723,0.000241,2]
[345004714,1733923838946,-500.0,0.000241,2]
[345004715,1733923838956,-517.89693697,0.000241,2]
[345004716,1733923838966,-229.30914361,0.00024621,2]
[345004717,1733923838976,-260.67381721,0.00024648,2]
[345004718,1733923838985,-500.0,0.00024648,2]
[345004719,1733923838994,-1000.0,0.00024648,2]
[345004720,1733923839004,-501.46740338,0.00024648,2]
[345004721,1733923839014,-173.19519,0.00024658,2]
[345004722,1733923839024,-166.51221517,0.000248,2]
[345004723,1733923839034,-273.46628,0.00024923,2]
[345004724,1733923839044,-838.79780095,0.0002497,2]
[345004725,1733923839053,-324.172716,0.00024987,2]
[345004726,1733923839063,-171.808085,0.00024989,2]
[345004727,1733923839072,-183730.31059689,0.0002499,5]
[345004728,1733923839082,-79170.09805337,0.00025,7]
[345004729,1733923839091,-1544.5106557,0.00025,2]
[345004730,1733923839101,-463.2566682,0.00025047,2]
[345004731,1733923839111,-788.88549845,0.0002507,2]
[345004732,1733923839124,-213.86152483,0.000251,2]
[345004733,1733923839133,-1500.0,0.0002565,2]
[345004734,1733923839143,-273.46628,0.00025845,2]
[345004735,1733923839151,-6130.29455586,0.00026,10]
[345004736,1733923839163,-528.94365929,0.00026,2]
[345004737,1733923839172,-41457.30030977,0.00026,30]
[345004738,1733923839183,-155.57561076,0.0002604,2]
[345004739,1733923839202,-2954.74315226,0.00026192,2]
[345004740,1733923839212,-3634.35410265,0.00026192,2]
[345004741,1733923839223,-500.0,0.00026273,2]
[345004742,1733923839238,-165.756,0.00026288,12]
[345004743,1733923839248,-500.0,0.00026289,2]
[345004744,1733923839258,-660.0,0.00026384,2]
[345004745,1733923839268,-503.18691399,0.00026426,2]
[345004746,1733923839279,-420.0,0.00026427,2]
[345004747,1733923839289,-173.19519,0.00026501,2]
[345004748,1733923839299,-764.58758748,0.0002661,30]
[345004749,1733923839308,-273.46628,0.00026768,2]
[345004750,1733923839318,-2954.74315224,0.00026817,2]
[345004751,1733923839329,-702.6138079,0.00026849,2]
[345004752,1733923839339,-160.0,0.00026852,3]
[345004753,1733923839350,-150.0,0.00026917,2]
[345004754,1733923839360,-238.066468,0.00026921,2]
[345004755,1733923839371,-2000.0,0.00026947,2]
[345004756,1733923839385,-95994.0878321,0.00027,2]
[345004757,1733923839399,-3622.23114716,0.00027,2]
[345004758,1733923839409,-180.18864957,0.00027,2]
[345004759,1733923839420,-3634.35410262,0.00027085,2]
[345004760,1733923839429,-240.41461141,0.00027256,2]
[345004761,1733923839439,-765.0000001,0.00027341,2]
[345004762,1733923839448,-155.02878054,0.00027342,2]
[345004763,1733923839458,-150.52070643,0.0002737,2]
[345004764,1733923839466,-500.0,0.00027397,7]
[345004765,1733923839478,-500.0,0.00027397,2]
[345004766,1733923839488,-500.0,0.00027397,2]
[345004767,1733923839498,-320.92276686,0.00027397,2]
[345004769,1733923839598,-500.0,0.00027397,2]
[345004770,1733923839608,-308.7869102,0.00027397,2]
[345004771,1733923839617,-454.4568209,0.00027397,2]
[345004772,1733923839627,-535.02412639,0.000274,2]
[345004773,1733923839636,-2452.20849954,0.00027408,2]
[345004774,1733923839646,-2954.74315224,0.00027441,2]
[345004775,1733923839656,-202931.0,0.000275,30]
[345004776,1733923839666,-38288.64278822,0.000275,2]
[345004777,1733923839676,-160.0,0.00027609,4]
[345004778,1733923839685,-273.46628,0.0002769,2]
[345004779,1733923839710,-151.0,0.00027917,2]
[345004781,1733923839720,-3634.35410262,0.00027978,2]
[345004782,1733923839730,-446.8540005,0.00027978,30]
[345004783,1733923839741,-30616.33555269,0.0002799,2]
[345004784,1733923839751,-2954.74315224,0.00028066,2]
[345004785,1733923839761,-408.5395103,0.00028219,30]
[345004786,1733923839771,-421.9159495,0.00028219,30]
[345004787,1733923839782,-681.484,0.0002826,2]
[345004788,1733923839792,-160.0,0.00028366,5]
[345004789,1733923839803,-2500.0,0.00028484,5]
[345004790,1733923839813,-153.0,0.00028493,30]
[345004791,1733923839824,-153.0,0.00028493,30]
[345004792,1733923839834,-153.0,0.00028493,30]
[345004793,1733923839843,-153.0,0.00028493,30]
[345004794,1733923839853,-153.0,0.00028493,30]
[345004795,1733923839862,-159.1602842,0.00028493,30]
[345004796,1733923839872,-151.0,0.000285,17]
[345004797,1733923839882,-273.46628,0.00028612,2]
[345004798,1733923839892,-159.27073057,0.00028619,2]
[345004799,1733923839901,-2954.74315224,0.0002869,2]
[345004800,1733923839911,-151.0,0.000287,13]
[345004801,1733923839921,-155.00143903,0.00028709,2]
[345004802,1733923839931,-500.0,0.00028767,9]
[345004803,1733923839941,-3634.35410262,0.0002887,2]
[345004804,1733923839951,-3475.10134486,0.00028878,2]
[345004805,1733923839961,-151.0,0.000289,19]
[345004806,1733923839970,-155.10853342,0.00028943,2]
[345004807,1733923839980,-982.68481871,0.00029,2]
[345004808,1733923839990,-344.94052753,0.00029,7]
[345004809,1733923840001,-344.94052753,0.00029,7]
[345004810,1733923840011,-344.94052753,0.00029,7]
[345004811,1733923840022,-344.94052753,0.00029,7]
[345004812,1733923840034,-344.94052753,0.00029,7]
[345004813,1733923840044,-344.94052753,0.00029,7]
[345004814,1733923840054,-344.94052753,0.00029,7]
[345004815,1733923840066,-344.94052753,0.00029,7]
[345004816,1733923840077,-344.94052753,0.00029,7]
[345004817,1733923840091,-344.94052753,0.00029,7]
[345004818,1733923840102,-344.94052753,0.00029,7]
[345004819,1733923840113,-344.94052753,0.00029,7]
[345004820,1733923840126,-344.94052753,0.00029,7]
[345004821,1733923840135,-344.94052753,0.00029,7]
[345004822,1733923840146,-344.94052753,0.00029,7]
[345004823,1733923840159,-344.94052753,0.00029,7]
[345004824,1733923840169,-344.94052753,0.00029,7]
[345004825,1733923840180,-344.94052753,0.00029,7]
[345004826,1733923840195,-344.94052753,0.00029,7]
[345004827,1733923840206,-344.94,0.00029,7]
[345004828,1733923840217,-517.4107913,0.00029,7]
[345004829,1733923840237,-517.4107913,0.00029,7]
[345004830,1733923840248,-517.4107913,0.00029,7]
[345004831,1733923840258,-517.4107913,0.00029,7]
[345004832,1733923840268,-517.4107913,0.00029,7]
[345004833,1733923840278,-517.4107913,0.00029,7]
[345004834,1733923840288,-517.4107913,0.00029,7]
[345004835,1733923840298,-517.4107913,0.00029,7]
[345004836,1733923840308,-517.4107913,0.00029,7]
[345004837,1733923840318,-517.4107913,0.00029,7]
[345004839,1733923840327,-517.4107913,0.00029,7]
[345004841,1733923840337,-517.4107913,0.00029,7]
[345004843,1733923840346,-517.4107913,0.00029,7]
[345004845,1733923840355,-517.4107913,0.00029,7]
[345004847,1733923840364,-517.4107913,0.00029,7]
[345004849,1733923840374,-517.4107913,0.00029,7]
[345004851,1733923840384,-517.4107913,0.00029,7]
[345004853,1733923840394,-252.62754893,0.00029,7]
[345004855,1733923840404,-252.62754893,0.00029,7]
[345004856,1733923840414,-252.62754893,0.00029,7]
[345004858,1733923840423,-252.62754893,0.00029,7]
[345004860,1733923840432,-252.62754893,0.00029,7]
[345004862,1733923840441,-252.62754893,0.00029,7]
[345004863,1733923840450,-252.62754893,0.00029,7]
[345004865,1733923840459,-252.62754893,0.00029,7]
[345004867,1733923840469,-252.62754893,0.00029,7]
[345004869,1733923840478,-252.62754893,0.00029,7]
[345004870,1733923840487,-252.62754893,0.00029,7]
[345004872,1733923840496,-252.62754893,0.00029,7]
[345004873,1733923840505,-252.62754893,0.00029,7]
[345004875,1733923840515,-252.62754893,0.00029,7]
[345004877,1733923840525,-252.62754893,0.00029,7]
[345004878,1733923840534,-252.62754893,0.00029,7]
[345004880,1733923840543,-252.62754893,0.00029,7]
[345004881,1733923840553,-252.62754893,0.00029,7]
[345004883,1733923840562,-252.62754893,0.00029,7]
[345004885,1733923840573,-252.62,0.00029,7]
[345004886,1733923840582,-378.94132339,0.00029,7]
[345004887,1733923840591,-378.94132339,0.00029,7]
[345004888,1733923840600,-378.94132339,0.00029,7]
[345004889,1733923840609,-378.94132339,0.00029,7]
[345004890,1733923840619,-378.94132339,0.00029,7]
[345004891,1733923840629,-378.94132339,0.00029,7]
[345004892,1733923840639,-378.94132339,0.00029,7]
[345004893,1733923840648,-378.94132339,0.00029,7]
[345004894,1733923840657,-378.94132339,0.00029,7]
[345004895,1733923840666,-378.94132339,0.00029,7]
[345004896,1733923840675,-378.94132339,0.00029,7]
[345004897,1733923840685,-378.94132339,0.00029,7]
[345004898,1733923840694,-378.94132339,0.00029,7]
[345004899,1733923840703,-378.94132339,0.00029,7]
[345004900,1733923840712,-378.94132339,0.00029,7]
[345004901,1733923840721,-378.94132339,0.00029,7]
[345004902,1733923840731,-378.94132339,0.00029,7]
[345004903,1733923840739,-302.78807257,0.00029,2]
[345004904,1733923840748,-200.0,0.00029,120]
[345004905,1733923840757,-163.232852,0.00029041,30]
[345004906,1733923840767,-587.0,0.00029069,2]
[345004907,1733923840776,-160.0,0.00029099,10]
[345004908,1733923840788,-151.0,0.000291,11]
[345004909,1733923840799,-430399.44709848,0.000291,2]
[345004910,1733923840809,-160.0,0.00029123,6]
[345004911,1733923840818,-517.4107913,0.00029168,7]
[345004912,1733923840827,-378.94132339,0.00029168,7]
[345004913,1733923840836,-163.232852,0.00029197,5]
[345004914,1733923840846,-150.5,0.0002929,120]
[345004915,1733923840855,-302.78807257,0.0002929,2]
[345004916,1733923840865,-151.0,0.000293,11]
[345004917,1733923840874,-2954.74315224,0.00029315,2]
[345004918,1733923840884,-2153.44585305,0.000294,2]
[345004919,1733923840894,-704.1349824,0.00029434,4]
[345004920,1733923840903,-517.4107913,0.00029465,7]
[345004921,1733923840913,-378.94132339,0.00029465,7]
[345004922,1733923840923,-160.0,0.00029473,10]
[345004923,1733923840933,-533.0,0.00029474,2]
[345004924,1733923840942,-2370.0,0.00029474,2]
[345004925,1733923840952,-2163.0,0.00029474,2]
[345004926,1733923840961,-372.156,0.00029474,2]
[345004927,1733923840971,-163.232852,0.00029497,2]
[345004928,1733923840981,-160.0,0.00029499,10]
[345004929,1733923840992,-302689.178343,0.000295,5]
[345004930,1733923841002,-6264.39105588,0.000295,7]
[345004931,1733923841012,-151.0,0.000295,14]
[345004932,1733923841021,-2153.445853,0.00029529,2]
[345004933,1733923841031,-302.78807257,0.0002958,2]
[345004934,1733923841041,-5000.0,0.000296,7]
[345004935,1733923841050,-2153.445853,0.00029659,2]
[345004936,1733923841060,-160.0,0.00029662,10]
[345004937,1733923841070,-6073.66401505,0.00029663,7]
[345004938,1733923841080,-500.0,0.00029673,5]
[345004939,1733923841090,-503.27171946,0.00029673,5]
[345004940,1733923841101,-500.0,0.00029673,5]
[345004941,1733923841111,-500.0,0.00029673,5]
[345004942,1733923841121,-500.36572964,0.00029673,5]
[345004943,1733923841131,-160.0,0.00029699,10]
[345004944,1733923841142,-151.0,0.000297,13]
[345004945,1733923841151,-686502.69037017,0.000297,2]
[345004946,1733923841161,-486.05991735,0.00029731,2]
[345004947,1733923841172,-176.912,0.00029732,2]
[345004948,1733923841182,-150.0,0.00029732,2]
[345004949,1733923841202,-161.98989227,0.00029749,10]
[345004950,1733923841216,-32714.40781195,0.0002975,3]
[345004951,1733923841226,-151.0,0.00029756,7]
[345004952,1733923841236,-3634.35410262,0.00029763,2]
[345004953,1733923841247,-5591.21235305,0.00029763,21]
[345004954,1733923841256,-666.0,0.00029763,2]
[345004955,1733923841267,-517.41,0.00029763,7]
[345004956,1733923841277,-378.94,0.00029763,7]
[345004957,1733923841287,-192.4,0.00029763,7]
[345004958,1733923841298,-2153.445853,0.00029788,2]
[345004959,1733923841308,-7349.75229516,0.000298,7]
[345004960,1733923841324,-1023.21,0.000298,7]
[345004961,1733923841480,-20224.28604323,0.000298,7]
[345004962,1733923841489,-2931.10160103,0.000298,7]
[345004963,1733923841498,-8742.80765459,0.000298,7]
[345004981,1733923843430,-425.7439263,0.00027478,30]
[345004982,1733923843440,-3291.4560737,0.00029643,7]
[345004983,1733923843452,-754.05231594,0.00029643,7]
[345004984,1733923843462,-601.27389368,0.000298,7]
[345005034,1733924365132,229.817919,0.00013973,2]
[345005035,1733924365373,59.999687,0.00020447,2]
[345005036,1733924365400,169.818232,0.00020447,2]
[345005052,1733924862696,2008.0,0.00023,10]
[345005104,1733925032162,-722.89310071,0.00023826,2]
[345005106,1733925032172,-1806.60387652,0.00025,2]
[345005108,1733925032185,-1679.01001604,0.00025,2]
[345005110,1733925032197,-2047.98116584,0.00025,2]
[345005647,1733925038103,-371.2594016,0.00025,2]
[345005648,1733925038112,-179.670298,0.00025658,2]
[345005649,1733925038123,-300.0,0.0002679,2]
[345005650,1733925038134,-300.0,0.0002679,2]
[345005651,1733925038144,-1511.90882932,0.00026791,120]
[345005652,1733925038154,-229.817919,0.00026921,2]
[345005653,1733925038163,-868.640349,0.00027232,2]
[345005656,1733925038290,-1157.64945985,0.00027238,2]
[345005657,1733925038307,-6821.793785,0.00027238,2]
[345005658,1733925038319,-1289.1309375,0.00027238,2]
[345005659,1733925038331,-458.4899999,0.00027238,2]
[345005672,1733925040466,-15172.93581775,0.00027238,2]
[345005673,1733925040476,-1670.99079093,0.00027297,2]
[345005674,1733925040486,-500.0,0.00027397,7]
[345005675,1733925040496,-881.360839,0.00027481,2]
[345005676,1733925040506,-660.0,0.00027524,2]
[345005677,1733925040519,-203.301648,0.00027743,2]
[345005678,1733925040528,-1670.99079091,0.00027763,2]
[345005679,1733925040538,-247.80838335,0.00027917,2]
[345005680,1733925040548,-626.725206,0.00027994,2]
[345005681,1733925040559,-191.85,0.00028,2]
[345005682,1733925040568,-1835.3155764,0.00028083,2]
[345005683,1733925040579,-1524.4270607,0.00028098,2]
[345005684,1733925040591,-1670.99079091,0.00028229,2]
[345005685,1733925040600,-1499.4498424,0.00028277,2]
[345005686,1733925040610,-653.078,0.000283,2]
[345005687,1733925040619,-1670.99079091,0.00028695,2]
[345005688,1733925040628,-500.0,0.00028767,9]
[345005689,1733925040641,-203.301648,0.00028769,2]
[345005690,1733925040651,-420.0,0.00028969,2]
[345005691,1733925040660,-955.32196936,0.00029,5]
[345005692,1733925040669,-302.72757545,0.00029,2]
[345005693,1733925040679,-153.0,0.00029014,30]
[345005694,1733925040689,-153.0,0.00029014,30]
[345005695,1733925040698,-213.5522929,0.00029014,30]
[345005696,1733925040708,-213.5522929,0.00029014,30]
[345005697,1733925040718,-153.0,0.00029014,30]
[345005698,1733925040727,-153.0,0.00029014,30]
[345005699,1733925040738,-305.9284392,0.00029014,30]
[345005700,1733925040747,-213.5522929,0.00029014,30]
[345005701,1733925040757,-305.9284392,0.00029014,30]
[345005702,1733925040767,-213.5522929,0.00029014,30]
[345005703,1733925040776,-153.0,0.00029014,30]
[345005704,1733925040787,-153.0,0.00029014,30]
[345005705,1733925040796,-213.5522929,0.00029014,30]
[345005706,1733925040806,-201.6458901,0.00029014,30]
[345005707,1733925040815,-153.0,0.00029014,30]
[345005708,1733925040825,-213.5522929,0.00029014,30]
[345005709,1733925040835,-213.5522929,0.00029014,30]
[345005710,1733925040845,-213.5522929,0.00029014,30]
[345005711,1733925040855,-153.0,0.00029014,30]
[345005712,1733925040865,-151.0,0.000291,7]
[345005713,1733925040875,-151.0,0.000291,7]
[345005714,1733925040887,-151.0,0.000291,7]
[345005715,1733925040899,-151.0,0.000291,7]
[345005716,1733925040908,-151.0,0.000291,7]
[345005717,1733925040918,-1670.99079091,0.00029162,2]
[345005718,1733925040927,-302.72757545,0.0002929,2]
[345005719,1733925040939,-150.662,0.00029389,2]
[345005720,1733925040949,-533.0,0.00029389,2]
[345005721,1733925040958,-2370.0,0.00029389,2]
[345005722,1733925040968,-1104.94278263,0.00029389,2]
[345005723,1733925040981,-467.52,0.00029389,2]
[345005797,1733925043759,-588.53721737,0.00029389,2]
[345005798,1733925043768,-21.55358248,0.00029389,2]
[345005799,1733925043838,-155.35841752,0.00029389,2]
[345005800,1733925043848,-420.0,0.00029469,2]
[345005801,1733925043857,-352.0674912,0.0002949,4]
[345005802,1733925043867,-2011.06033765,0.000295,7]
[345005803,1733925043878,-151.0,0.000295,7]
[345005804,1733925043892,-151.0,0.000295,7]
[345005805,1733925043902,-151.0,0.000295,7]
[345005806,1733925043912,-179.466424,0.000295,7]
[345005807,1733925043922,-151.0,0.000295,7]
[345005808,1733925043932,-100.604,0.00029564,2]
[345005809,1733925043952,-409.50994,0.00029564,2]
[345005832,1733925289920,150.47,0.00023,2]
[345005835,1733925300463,208.779104,0.00013973,2]
[345005836,1733925300723,208.779104,0.00020447,2]
[345005865,1733926232421,-1597.95320376,0.00023993,2]
[345005867,1733926232557,-952.61061124,0.00023993,2]
[345005868,1733926232566,-894.35982086,0.00024899,2]
[345005869,1733926232575,-2478.87101065,0.000249,2]
[345005870,1733926232584,-333.28739452,0.000249,2]
[345005871,1733926232595,-300.0,0.00024971,2]
[345005872,1733926232604,-300.0,0.00024972,2]
[345005873,1733926232614,-162.86250865,0.00024973,2]
[345005874,1733926232624,-500.0,0.00024973,2]
[345005875,1733926232634,-500.86084163,0.00024973,2]
[345005876,1733926232645,-500.0,0.00024973,2]
[345005878,1733926232655,-500.0,0.00024973,2]
[345005879,1733926232664,-160.0187682,0.00024973,2]
[345005881,1733926232674,-500.0,0.00024973,2]
[345005883,1733926232683,-294.78608231,0.00024998,2]
[345005885,1733926232692,-35.48196194,0.00024998,2]
[345005905,1733926238527,-432.54286483,0.00024973,2]
[345005906,1733926238539,-464.51803806,0.00024998,2]
[345005907,1733926238549,-250.00460534,0.00024998,2]
[345005908,1733926238560,-637.07502246,0.00024998,2]
[345005911,1733926238570,-185.70983062,0.00024998,2]
[345005913,1733926238580,-43.41434641,0.00024998,2]
[345005930,1733926240682,-456.58565359,0.00024998,2]
[345005931,1733926240693,-500.0,0.00024998,2]
[345005932,1733926240703,-500.0,0.00024998,2]
[345005933,1733926240713,-500.0,0.00024998,2]
[345005934,1733926240723,-507.93592781,0.00024998,2]
[345005935,1733926240732,-500.0,0.00024998,2]
[345005936,1733926240742,-500.0,0.00024998,2]
[345005937,1733926240752,-411.78549713,0.00024998,2]
[345005938,1733926240762,-500.0,0.00024998,2]
[345005939,1733926240772,-500.0,0.00024998,2]
[345005940,1733926240781,-500.0,0.00024998,2]
[345005941,1733926240791,-500.0,0.00024998,2]
[345005942,1733926240801,-500.0,0.00024998,2]
[345005943,1733926240811,-500.0,0.00024998,2]
[345005944,1733926240821,-500.0,0.00024998,2]
[345005945,1733926240832,-500.0,0.00024998,2]
[345005946,1733926240841,-500.0,0.00024998,2]
[345005947,1733926240851,-500.0,0.00024998,2]
[345005948,1733926240866,-500.0,0.00024998,2]
[345005949,1733926240876,-500.0,0.00024998,2]
[345005950,1733926240886,-500.0,0.00024998,2]
[345005951,1733926240896,-98.39139404,0.00024998,2]
[345005968,1733926243561,-401.60860596,0.00024998,2]
[345005969,1733926243571,-500.0,0.00024998,2]
[345005970,1733926243581,-500.0,0.00024998,2]
[345005971,1733926243591,-500.0,0.00024998,2]